fUSD/lending_fUSD_20251122
["ID","MTS","AMOUNT","RATE_DAILY","PERIOD"]
[394621966,1763794239970,-500.0,0.00016494,2]
[394621967,1763794239979,-500.0,0.00016494,2]
[394621968,1763794239988,-960.5,0.00016494,2]
[394621969,1763794239998,-500.0,0.00016494,2]
[394621970,1763794240007,-807.31,0.00016494,2]
[394621971,1763794240016,-500.0,0.00016494,2]
[394621972,1763794240025,-518.01635068,0.00016494,2]
[394621973,1763794240035,-709.5,0.00016494,2]
[394621974,1763794240045,-500.0,0.00016494,2]
[394621975,1763794240054,-500.0,0.00016494,2]
[394621976,1763794240063,-753.8,0.00016494,2]
[394621977,1763794240071,-500.0,0.00016494,2]
[394621978,1763794240081,-1016.24,0.00016494,2]
[394621979,1763794240090,-500.0,0.00016494,2]
[394621980,1763794240099,-500.0,0.00016494,2]
[394621981,1763794240108,-500.0,0.00016494,2]
[394621982,1763794240118,-522.68286267,0.00016494,2]
[394621983,1763794240127,-500.0,0.00016494,2]
[394621984,1763794240137,-500.0,0.00016494,2]
[394621985,1763794240147,-500.0,0.00016494,2]
[394621986,1763794240157,-1259.62,0.00016494,2]
[394621987,1763794240166,-500.0,0.00016494,2]
[394621988,1763794240175,-500.0,0.00016494,2]
[394621989,1763794240184,-500.0,0.00016494,2]
[394621990,1763794240194,-775.47,0.00016494,2]
[394621991,1763794240203,-1122.35,0.00016494,2]
[394621992,1763794240213,-1814.47,0.00016494,2]
[394621993,1763794240222,-500.0,0.00016494,2]
[394621994,1763794240231,-500.0,0.00016494,2]
[394621995,1763794240240,-500.0,0.00016494,2]
[394621996,1763794240250,-500.0,0.00016494,2]
[394621997,1763794240260,-500.0,0.00016494,2]
[394621998,1763794240270,-500.0,0.00016494,2]
[394621999,1763794240279,-500.0,0.00016494,2]
[394622000,1763794240288,-500.0,0.00016494,2]
[394622001,1763794240298,-500.0,0.00016494,2]
[394622002,1763794240308,-500.0,0.00016494,2]
[394622003,1763794240318,-500.0,0.00016494,2]
[394622004,1763794240328,-500.0,0.00016494,2]
[394622005,1763794240337,-500.0,0.00016494,2]
[394622006,1763794240347,-500.0,0.00016494,2]
[394622007,1763794240356,-500.0,0.00016494,2]
[394622008,1763794240365,-500.0,0.00016494,2]
[394622009,1763794240375,-822.35,0.00016494,2]
[394622010,1763794240384,-500.0,0.00016494,2]
[394622011,1763794240394,-554.53,0.00016494,2]
[394622012,1763794240403,-500.0,0.00016494,2]
[394622013,1763794240413,-599.24305408,0.00016494,2]
[394622014,1763794240422,-500.0,0.00016494,2]
[394622015,1763794240431,-500.0,0.00016494,2]
[394622016,1763794240440,-500.0,0.00016494,2]
[394622017,1763794240450,-502.46594061,0.00016494,2]
[394622018,1763794240459,-500.0,0.00016494,2]
[394622019,1763794240468,-500.0,0.00016494,2]
[394622020,1763794240477,-500.0,0.00016494,2]
[394622021,1763794240486,-500.0,0.00016494,2]
[394622022,1763794240496,-500.0,0.00016494,2]
[394622023,1763794240505,-500.0,0.00016494,2]
[394622024,1763794240514,-500.0,0.00016494,2]
[394622025,1763794240524,-500.0,0.00016494,2]
[394622026,1763794240533,-500.0,0.00016494,2]
[394622027,1763794240542,-500.0,0.00016494,2]
[394622028,1763794240552,-500.0,0.00016494,2]
[394622029,1763794240561,-500.0,0.00016494,2]
[394622030,1763794240570,-500.0,0.00016494,2]
[394622031,1763794240579,-500.0,0.00016494,2]
[394622032,1763794240588,-500.0,0.00016494,2]
[394622033,1763794240597,-612.84009635,0.00016494,2]
[394622034,1763794240606,-500.0,0.00016494,2]
[394622035,1763794240615,-500.0,0.00016494,2]
[394622036,1763794240624,-500.0,0.00016494,2]
[394622037,1763794240633,-500.0,0.00016494,2]
[394622038,1763794240642,-725.24,0.00016494,2]
[394622039,1763794240652,-500.0,0.00016494,2]
[394622040,1763794240661,-500.0,0.00016494,2]
[394622041,1763794240671,-500.0,0.00016494,2]
[394622042,1763794240680,-500.0,0.00016494,2]
[394622043,1763794240691,-500.0,0.00016494,2]
[394622044,1763794240702,-500.0,0.00016494,2]
[394622045,1763794240711,-500.0,0.00016494,2]
[394622046,1763794240720,-5030.19,0.00016494,2]
[394622047,1763794240729,-305.18134343,0.00016494,2]
[394622048,1763794240739,-500.0,0.00016494,2]
[394622049,1763794240748,-544.57281336,0.00016494,2]
[394622050,1763794240757,-500.0,0.00016494,2]
[394622051,1763794240766,-500.0,0.00016494,2]
[394622052,1763794240776,-500.0,0.00016494,2]
[394622053,1763794240785,-500.0,0.00016494,2]
[394622054,1763794240794,-500.0,0.00016494,2]
[394622055,1763794240804,-1508.24,0.00016494,2]
[394622056,1763794240813,-890.72,0.00016494,2]
[394622057,1763794240823,-500.0,0.00016494,2]
[394622058,1763794240832,-500.0,0.00016494,2]
[394622059,1763794240841,-500.0,0.00016494,2]
[394622060,1763794240850,-1061.04,0.00016494,2]
[394622061,1763794240859,-500.0,0.00016494,2]
[394622062,1763794240868,-464.55205881,0.00016494,2]
[394622063,1763794240877,-500.0,0.00016494,2]
[394622064,1763794240886,-583.21,0.00016494,2]
[394622065,1763794240897,-1501.92,0.00016494,2]
[394622066,1763794240907,-953.38,0.00016494,2]
[394622067,1763794240916,-500.0,0.00016494,2]
[394622068,1763794240925,-151.0,0.00016494,2]
[394622069,1763794240934,-623.86,0.00016494,2]
[394622070,1763794240943,-500.0,0.00016494,2]
[394622071,1763794240952,-522.88154208,0.00016494,2]
[394622072,1763794240961,-500.0,0.00016494,2]
[394622073,1763794240970,-500.0,0.00016494,2]
[394622074,1763794240980,-414.69916395,0.00016494,2]
[394622075,1763794240989,-552.33148979,0.00016494,2]
[394622076,1763794240998,-1224.03,0.00016494,2]
[394622077,1763794241007,-500.0,0.00016494,2]
[394622078,1763794241016,-775.05,0.00016494,2]
[394622079,1763794241026,-1147.32,0.00016494,2]
[394622080,1763794241035,-500.0,0.00016494,2]
[394622081,1763794241045,-500.0,0.00016494,2]
[394622082,1763794241054,-639.82,0.00016494,2]
[394622083,1763794241064,-500.0,0.00016494,2]
[394622084,1763794241074,-500.0,0.00016494,2]
[394622085,1763794241083,-958.79,0.00016494,2]
[394622086,1763794241093,-409.52919039,0.00016494,2]
[394622087,1763794241102,-308.37208877,0.00016494,2]
[394622088,1763794241111,-500.0,0.00016494,2]
[394622089,1763794241120,-500.0,0.00016494,2]
[394622090,1763794241130,-500.0,0.00016494,2]
[394622091,1763794241139,-500.0,0.00016494,2]
[394622092,1763794241149,-500.0,0.00016494,2]
[394622093,1763794241159,-500.0,0.00016494,2]
[394622094,1763794241168,-587.18,0.00016494,2]
[394622095,1763794241178,-534.2208297,0.00016494,2]
[394622096,1763794241188,-645.09221905,0.00016494,2]
[394622097,1763794241199,-500.0,0.00016494,2]
[394622098,1763794241209,-615.72,0.00016494,2]
[394622099,1763794241219,-500.0,0.00016494,2]
[394622100,1763794241228,-184.89238973,0.00016494,2]
[394622101,1763794241238,-500.0,0.00016494,2]
[394622102,1763794241247,-623.33,0.00016494,2]
[394622103,1763794241256,-500.0,0.00016494,2]
[394622104,1763794241266,-500.0,0.00016494,2]
[394622105,1763794241276,-868.93,0.00016494,2]
[394622106,1763794241287,-500.0,0.00016494,2]
[394622107,1763794241298,-500.0,0.00016494,2]
[394622108,1763794241308,-500.0,0.00016494,2]
[394622109,1763794241320,-798.39,0.00016494,2]
[394622110,1763794241331,-500.0,0.00016494,2]
[394622111,1763794241341,-500.0,0.00016494,2]
[394622112,1763794241351,-500.0,0.00016494,2]
[394622113,1763794241363,-500.0,0.00016494,2]
[394622114,1763794241373,-730.25,0.00016494,2]
[394622115,1763794241383,-592.39,0.00016494,2]
[394622116,1763794241395,-500.0,0.00016494,2]
[394622117,1763794241405,-664.86,0.00016494,2]
[394622118,1763794241415,-505.42520178,0.00016494,2]
[394622119,1763794241426,-1520.99,0.00016494,2]
[394622120,1763794241436,-813.27,0.00016494,2]
[394622121,1763794241446,-500.0,0.00016494,2]
[394622122,1763794241456,-500.0,0.00016494,2]
[394622123,1763794241466,-500.0,0.00016494,2]
[394622124,1763794241475,-500.0,0.00016494,2]
[394622125,1763794241487,-500.0,0.00016494,2]
[394622126,1763794241499,-1047.79,0.00016494,2]
[394622127,1763794241509,-500.0,0.00016494,2]
[394622128,1763794241519,-802.02,0.00016494,2]
[394622129,1763794241530,-500.0,0.00016494,2]
[394622130,1763794241540,-500.0,0.00016494,2]
[394622131,1763794241550,-814.17,0.00016494,2]
[394622132,1763794241561,-500.0,0.00016494,2]
[394622133,1763794241570,-666.7,0.00016494,2]
[394622134,1763794241580,-300.0,0.00016494,2]
[394622135,1763794241589,-181.94372542,0.00016494,2]
[394622136,1763794241599,-1402.01,0.00016494,2]
[394622137,1763794241608,-500.0,0.00016494,2]
[394622138,1763794241619,-1916.11,0.00016494,2]
[394622139,1763794241628,-500.0,0.00016494,2]
[394622140,1763794241639,-907.53,0.00016494,2]
[394622141,1763794241648,-500.0,0.00016494,2]
[394622142,1763794241658,-500.0,0.00016494,2]
[394622143,1763794241667,-705.77,0.00016494,2]
[394622144,1763794241677,-500.0,0.00016494,2]
[394622145,1763794241687,-500.0,0.00016494,2]
[394622146,1763794241701,-500.0,0.00016494,2]
[394622147,1763794241713,-504.60860798,0.00016494,2]
[394622148,1763794241724,-1105.66,0.00016494,2]
[394622149,1763794241735,-1057.01,0.00016494,2]
[394622150,1763794241745,-500.0,0.00016494,2]
[394622151,1763794241754,-500.0,0.00016494,2]
[394622152,1763794241764,-599.31,0.00016494,2]
[394622153,1763794241773,-500.0,0.00016494,2]
[394622154,1763794241782,-500.0,0.00016494,2]
[394622155,1763794241791,-500.0,0.00016494,2]
[394622156,1763794241801,-500.0,0.00016494,2]
[394622157,1763794241811,-589.2,0.00016494,2]
[394622158,1763794241820,-6433.39,0.00016494,2]
[394622159,1763794241830,-758.41,0.00016494,2]
[394622160,1763794241839,-909.79,0.00016494,2]
[394622161,1763794241848,-514.0885589,0.00016494,2]
[394622162,1763794241858,-500.0,0.00016494,2]
[394622163,1763794241867,-500.0,0.00016494,2]
[394622164,1763794241876,-500.0,0.00016494,2]
[394622165,1763794241885,-500.0,0.00016494,2]
[394622166,1763794241895,-311.78058546,0.00016494,2]
[394622167,1763794241904,-3697.08,0.00016494,2]
[394622168,1763794241913,-500.0,0.00016494,2]
[394622169,1763794241922,-151.0,0.00016494,2]
[394622170,1763794241932,-151.0,0.00016494,2]
[394622171,1763794241941,-591.81657492,0.00016494,2]
[394622172,1763794241950,-500.0,0.00016494,2]
[394622173,1763794241959,-500.0,0.00016494,2]
[394622174,1763794241969,-500.0,0.00016494,2]
[394622175,1763794241978,-500.0,0.00016494,2]
[394622176,1763794241987,-500.0,0.00016494,2]
[394622177,1763794241996,-500.0,0.00016494,2]
[394622178,1763794242006,-500.0,0.00016494,2]
[394622179,1763794242015,-500.0,0.00016494,2]
[394622180,1763794242025,-500.0,0.00016494,2]
[394622181,1763794242035,-500.0,0.00016494,2]
[394622182,1763794242044,-690.73,0.00016494,2]
[394622183,1763794242053,-500.0,0.00016494,2]
[394622184,1763794242062,-500.0,0.00016494,2]
[394622185,1763794242072,-820.04,0.00016494,2]
[394622186,1763794242082,-500.0,0.00016494,2]
[394622187,1763794242091,-500.0,0.00016494,2]
[394622188,1763794242101,-500.0,0.00016494,2]
[394622189,1763794242110,-764.99,0.00016494,2]
[394622190,1763794242120,-500.0,0.00016494,2]
[394622191,1763794242129,-500.0,0.00016494,2]
[394622192,1763794242138,-729.2,0.00016494,2]
[394622193,1763794242148,-500.0,0.00016494,2]
[394622194,1763794242157,-500.0,0.00016494,2]
[394622195,1763794242166,-565.05666464,0.00016494,2]
[394622196,1763794242176,-1332.76,0.00016494,2]
[394622197,1763794242185,-500.0,0.00016494,2]
[394622198,1763794242194,-531.64475775,0.00016494,2]
[394622199,1763794242203,-1693.15,0.00016494,2]
[394622200,1763794242211,-529.8853137,0.00016494,2]
[394622201,1763794242220,-500.0,0.00016494,2]
[394622202,1763794242229,-500.0,0.00016494,2]
[394622203,1763794242238,-724.27,0.00016494,2]
[394622204,1763794242247,-500.0,0.00016494,2]
[394622205,1763794242256,-661.64,0.00016494,2]
[394622206,1763794242264,-500.0,0.00016494,2]
[394622207,1763794242273,-1089.6,0.00016494,2]
[394622208,1763794242283,-500.0,0.00016494,2]
[394622209,1763794242292,-500.0,0.00016494,2]
[394622210,1763794242301,-487.2499152,0.00016494,2]
[394622211,1763794242310,-500.0,0.00016494,2]
[394622212,1763794242319,-500.0,0.00016494,2]
[394622213,1763794242328,-1061.0,0.00016494,2]
[394622214,1763794242338,-2087.83,0.00016494,2]
[394622215,1763794242347,-500.0,0.00016494,2]
[394622216,1763794242356,-500.0,0.00016494,2]
[394622217,1763794242366,-500.0,0.00016494,2]
[394622218,1763794242376,-500.0,0.00016494,2]
[394622219,1763794242385,-500.0,0.00016494,2]
[394622220,1763794242396,-500.0,0.00016494,2]
[394622221,1763794242405,-500.0,0.00016494,2]
[394622222,1763794242414,-500.0,0.00016494,2]
[394622223,1763794242424,-500.0,0.00016494,2]
[394622224,1763794242434,-500.0,0.00016494,2]
[394622225,1763794242443,-1998.05,0.00016494,2]
[394622226,1763794242452,-999.16,0.00016494,2]
[394622227,1763794242463,-412.52593546,0.00016494,2]
[394622228,1763794242474,-500.0,0.00016494,2]
[394622229,1763794242483,-500.0,0.00016494,2]
[394622230,1763794242493,-424.8608599,0.00016494,2]
[394622231,1763794242503,-500.0,0.00016494,2]
[394622232,1763794242514,-500.0,0.00016494,2]
[394622233,1763794242525,-774.83,0.00016494,2]
[394622234,1763794242534,-911.18,0.00016494,2]
[394622235,1763794242543,-721.64,0.00016494,2]
[394622236,1763794242552,-500.0,0.00016494,2]
[394622237,1763794242562,-500.0,0.00016494,2]
[394622238,1763794242571,-816.53,0.00016494,2]
[394622239,1763794242581,-500.0,0.00016494,2]
[394622240,1763794242590,-500.0,0.00016494,2]
[394622241,1763794242600,-500.0,0.00016494,2]
[394622242,1763794242609,-500.0,0.00016494,2]
[394622243,1763794242619,-676.94,0.00016494,2]
[394622245,1763794242629,-500.0,0.00016494,2]
[394622247,1763794242640,-639.51,0.00016494,2]
[394622248,1763794242858,-500.0,0.00016494,2]
[394622249,1763794242868,-500.0,0.00016494,2]
[394622250,1763794242879,-500.0,0.00016494,2]
[394622251,1763794242890,-1774.53,0.00016494,2]
[394622252,1763794242900,-821.7,0.00016494,2]
[394622253,1763794242910,-500.0,0.00016494,2]
[394622254,1763794242920,-500.0,0.00016494,2]
[394622255,1763794242931,-500.0,0.00016494,2]
[394622256,1763794242941,-500.0,0.00016494,2]
[394622257,1763794242951,-500.0,0.00016494,2]
[394622258,1763794242961,-500.0,0.00016494,2]
[394622259,1763794242971,-500.0,0.00016494,2]
[394622260,1763794242980,-500.0,0.00016494,2]
[394622261,1763794242990,-500.0,0.00016494,2]
[394622262,1763794243000,-500.0,0.00016494,2]
[394622263,1763794243009,-555.42442444,0.00016494,2]
[394622264,1763794243019,-500.0,0.00016494,2]
[394622265,1763794243028,-527.06,0.00016494,2]
[394622266,1763794243037,-500.0,0.00016494,2]
[394622267,1763794243046,-500.0,0.00016494,2]
[394622268,1763794243056,-500.0,0.00016494,2]
[394622269,1763794243065,-500.0,0.00016494,2]
[394622270,1763794243075,-500.0,0.00016494,2]
[394622271,1763794243084,-492.25734648,0.00016494,2]
[394622272,1763794243094,-500.0,0.00016494,2]
[394622273,1763794243104,-940.49,0.00016494,2]
[394622274,1763794243113,-500.0,0.00016494,2]
[394622275,1763794243123,-1420.62,0.00016494,2]
[394622276,1763794243132,-500.0,0.00016494,2]
[394622277,1763794243142,-1255.59,0.00016494,2]
[394622278,1763794243151,-500.0,0.00016494,2]
[394622279,1763794243161,-1114.19,0.00016494,2]
[394622280,1763794243171,-720.27,0.00016494,2]
[394622281,1763794243180,-500.0,0.00016494,2]
[394622282,1763794243189,-773.17,0.00016494,2]
[394622283,1763794243199,-151.0,0.00016494,2]
[394622284,1763794243209,-549.35806677,0.00016494,2]
[394622285,1763794243219,-151.0,0.00016494,2]
[394622286,1763794243228,-2960.27,0.00016494,2]
[394622287,1763794243238,-151.0,0.00016494,2]
[394622288,1763794243247,-540.04,0.00016494,2]
[394622289,1763794243257,-151.0,0.00016494,2]
[394622290,1763794243266,-237.81662508,0.00016494,2]
[394622291,1763794243275,-151.0,0.00016494,2]
[394622292,1763794243285,-151.0,0.00016494,2]
[394622293,1763794243295,-500.0,0.00016494,2]
[394622294,1763794243305,-151.0,0.00016494,2]
[394622295,1763794243315,-500.0,0.00016494,2]
[394622296,1763794243325,-151.0,0.00016494,2]
[394622297,1763794243334,-505.93,0.00016494,2]
[394622298,1763794243345,-420.23295599,0.00016494,2]
[394622299,1763794243356,-500.0,0.00016494,2]
[394622300,1763794243367,-500.0,0.00016494,2]
[394622301,1763794243377,-623.38,0.00016494,2]
[394622302,1763794243387,-500.0,0.00016494,2]
[394622303,1763794243397,-500.0,0.00016494,2]
[394622304,1763794243406,-500.0,0.00016494,2]
[394622305,1763794243415,-500.0,0.00016494,2]
[394622306,1763794243425,-708.93,0.00016494,2]
[394622307,1763794243435,-423.85587627,0.00016494,2]
[394622308,1763794243444,-500.0,0.00016494,2]
[394622309,1763794243454,-532.56452628,0.00016494,2]
[394622310,1763794243464,-500.0,0.00016494,2]
[394622311,1763794243475,-1425.11,0.00016494,2]
[394622312,1763794243484,-500.0,0.00016494,2]
[394622313,1763794243494,-500.0,0.00016494,2]
[394622315,1763794243503,-9324.48,0.00016494,2]
[394622317,1763794243512,-500.0,0.00016494,2]
[394622319,1763794243521,-500.0,0.00016494,2]
[394622320,1763794243530,-622.99,0.00016494,2]
[394622321,1763794243539,-500.0,0.00016494,2]
[394622322,1763794243548,-605.46,0.00016494,2]
[394622323,1763794243557,-573.25,0.00016494,2]
[394622324,1763794243567,-2271.9,0.00016494,2]
[394622325,1763794243576,-500.0,0.00016494,2]
[394622326,1763794243586,-500.0,0.00016494,2]
[394622327,1763794243596,-500.0,0.00016494,2]
[394622328,1763794243606,-500.0,0.00016494,2]
[394622329,1763794243616,-500.0,0.00016494,2]
[394622330,1763794243626,-500.0,0.00016494,2]
[394622331,1763794243636,-746.28,0.00016494,2]
[394622332,1763794243646,-1002.15,0.00016494,2]
[394622333,1763794243656,-500.0,0.00016494,2]
[394622334,1763794243665,-500.0,0.00016494,2]
[394622335,1763794243675,-619.08,0.00016494,2]
[394622336,1763794243685,-500.0,0.00016494,2]
[394622337,1763794243699,-500.0,0.00016494,2]
[394622338,1763794243708,-500.0,0.00016494,2]
[394622339,1763794243718,-500.0,0.00016494,2]
[394622340,1763794243728,-910.54,0.00016494,2]
[394622341,1763794243738,-500.0,0.00016494,2]
[394622342,1763794243749,-808.01,0.00016494,2]
[394622343,1763794243758,-500.0,0.00016494,2]
[394622344,1763794243768,-500.0,0.00016494,2]
[394622345,1763794243778,-949.94,0.00016494,2]
[394622346,1763794243788,-221.42,0.00016494,2]
[394622347,1763794243797,-500.0,0.00016494,2]
[394622348,1763794243808,-500.0,0.00016494,2]
[394622349,1763794243818,-1460.62,0.00016494,2]
[394622350,1763794243827,-500.0,0.00016494,2]
[394622351,1763794243838,-500.0,0.00016494,2]
[394622352,1763794243847,-500.0,0.00016494,2]
[394622353,1763794243857,-2411.74,0.00016494,2]
[394622354,1763794243866,-962.7,0.00016494,2]
[394622355,1763794243876,-154.14666643,0.00016494,2]
[394622356,1763794243885,-500.0,0.00016494,2]
[394622357,1763794243895,-1266.65,0.00016494,2]
[394622358,1763794243904,-941.66,0.00016494,2]
[394622359,1763794243913,-500.0,0.00016494,2]
[394622360,1763794243923,-2931.63,0.00016494,2]
[394622361,1763794243933,-500.0,0.00016494,2]
[394622362,1763794243942,-500.0,0.00016494,2]
[394622363,1763794243952,-500.0,0.00016494,2]
[394622364,1763794243961,-776.87,0.00016494,2]
[394622365,1763794243970,-500.0,0.00016494,2]
[394622366,1763794243979,-500.0,0.00016494,2]
[394622367,1763794243988,-1142.36,0.00016494,2]
[394622368,1763794244001,-1035.48,0.00016494,2]
[394622369,1763794244010,-500.0,0.00016494,2]
[394622370,1763794244020,-500.0,0.00016494,2]
[394622371,1763794244029,-1398.84,0.00016494,2]
[394622372,1763794244038,-605.15,0.00016494,2]
[394622373,1763794244048,-500.0,0.00016494,2]
[394622374,1763794244057,-500.0,0.00016494,2]
[394622375,1763794244066,-500.0,0.00016494,2]
[394622376,1763794244076,-1015.35,0.00016494,2]
[394622377,1763794244085,-151.0,0.00016495,2]
[394622378,1763794244094,-151.0,0.00016495,2]
[394622379,1763794244103,-160.819209,0.00016495,2]
[394622380,1763794244112,-173.384927,0.00016495,2]
[394622381,1763794244122,-600.0,0.00016495,2]
[394622382,1763794244131,-3017.38053016,0.00016558,2]
[394622383,1763794244140,-357.2,0.00016575,2]
[394622384,1763794244151,-500.0,0.00016593,2]
[394622385,1763794244160,-511.04992719,0.00016593,2]
[394622386,1763794244170,-500.0,0.00016594,2]
[394622387,1763794244179,-500.0,0.00016594,2]
[394622388,1763794244188,-500.0,0.00016594,2]
[394622389,1763794244197,-307.19975837,0.00016594,2]
[394622390,1763794244206,-500.0,0.00016594,2]
[394622391,1763794244216,-534.71011071,0.00016594,2]
[394622392,1763794244226,-500.0,0.00016594,2]
[394622393,1763794244236,-511.05363642,0.00016594,2]
[394622394,1763794244245,-500.0,0.00016594,2]
[394622395,1763794244254,-500.0,0.00016594,2]
[394622396,1763794244263,-504.06868981,0.00016594,2]
[394622397,1763794244272,-500.0,0.00016594,2]
[394622398,1763794244281,-500.0,0.00016594,2]
[394622399,1763794244290,-500.0,0.00016594,2]
[394622400,1763794244300,-400.0,0.00016594,2]
[394622401,1763794244309,-500.0,0.00016594,2]
[394622402,1763794244319,-500.0,0.00016594,2]
[394622403,1763794244328,-500.0,0.00016594,2]
[394622404,1763794244339,-500.0,0.00016594,2]
[394622405,1763794244348,-500.0,0.00016594,2]
[394622406,1763794244357,-500.0,0.00016594,2]
[394622407,1763794244367,-500.0,0.00016594,2]
[394622408,1763794244376,-500.0,0.00016594,2]
[394622409,1763794244385,-500.0,0.00016594,2]
[394622410,1763794244397,-500.0,0.00016594,2]
[394622411,1763794244406,-500.0,0.00016594,2]
[394622412,1763794244416,-239.18591315,0.00016594,2]
[394622413,1763794244425,-500.0,0.00016594,2]
[394622414,1763794244434,-500.0,0.00016594,2]
[394622415,1763794244444,-500.0,0.00016594,2]
[394622416,1763794244453,-350.65869234,0.00016594,2]
[394622417,1763794244462,-500.0,0.00016594,2]
[394622418,1763794244471,-500.0,0.00016594,2]
[394622419,1763794244480,-324.85049219,0.00016594,2]
[394622420,1763794244489,-500.0,0.00016594,2]
[394622421,1763794244498,-500.0,0.00016594,2]
[394622422,1763794244507,-500.0,0.00016594,2]
[394622423,1763794244517,-500.0,0.00016594,2]
[394622424,1763794244526,-500.0,0.00016594,2]
[394622425,1763794244535,-500.0,0.00016594,2]
[394622426,1763794244545,-500.0,0.00016594,2]
[394622427,1763794244554,-917.02,0.00016594,2]
[394622428,1763794244563,-500.0,0.00016594,2]
[394622429,1763794244573,-500.0,0.00016594,2]
[394622430,1763794244582,-500.0,0.00016594,2]
[394622431,1763794244591,-500.0,0.00016594,2]
[394622432,1763794244600,-500.0,0.00016594,2]
[394622433,1763794244609,-500.0,0.00016594,2]
[394622434,1763794244618,-500.0,0.00016594,2]
[394622435,1763794244628,-500.0,0.00016594,2]
[394622436,1763794244636,-500.0,0.00016594,2]
[394622437,1763794244647,-500.0,0.00016594,2]
[394622438,1763794244656,-559.59962487,0.00016594,2]
[394622439,1763794244666,-500.0,0.00016594,2]
[394622440,1763794244675,-500.0,0.00016594,2]
[394622441,1763794244684,-500.0,0.00016594,2]
[394622442,1763794244696,-511.77566593,0.00016594,2]
[394622443,1763794244706,-500.0,0.00016594,2]
[394622444,1763794244715,-500.0,0.00016594,2]
[394622445,1763794244724,-623.26,0.00016594,2]
[394622446,1763794244735,-500.0,0.00016594,2]
[394622447,1763794244744,-154.23621633,0.00016594,2]
[394622448,1763794244753,-990.14,0.00016594,2]
[394622449,1763794244763,-500.0,0.00016594,2]
[394622450,1763794244772,-500.0,0.00016594,2]
[394622451,1763794244782,-528.8532293,0.00016594,2]
[394622452,1763794244791,-500.0,0.00016594,2]
[394622453,1763794244800,-500.0,0.00016594,2]
[394622454,1763794244810,-500.0,0.00016594,2]
[394622455,1763794244819,-617.51,0.00016594,2]
[394622456,1763794244828,-500.0,0.00016594,2]
[394622457,1763794244837,-195.40311315,0.00016594,2]
[394622458,1763794244846,-500.0,0.00016594,2]
[394622459,1763794244855,-670.95,0.00016594,2]
[394622460,1763794244866,-500.0,0.00016594,2]
[394622461,1763794244877,-500.0,0.00016594,2]
[394622462,1763794244886,-1325.82,0.00016594,2]
[394622463,1763794244897,-500.0,0.00016594,2]
[394622464,1763794244906,-500.0,0.00016594,2]
[394622465,1763794244915,-500.0,0.00016594,2]
[394622466,1763794244924,-527.40639182,0.00016594,2]
[394622467,1763794244934,-500.0,0.00016594,2]
[394622468,1763794244943,-500.0,0.00016594,2]
[394622469,1763794244952,-500.0,0.00016594,2]
[394622470,1763794244961,-500.0,0.00016594,2]